bitfinex/quotes_ETHUSD_20250413
["timestamp","ask_amount","ask_price","bid_price","bid_amount"]
[1744521743945,0.7877,1605.7,1605.4,6.22892]
[1744521744514,0.7877,1605.7,1605.4,12.4577]
[1744521745448,0.7877,1605.7,1605.5,6.22851]
[1744521745618,0.7877,1605.7,1605.5,12.4569]
[1744521745813,0.7877,1605.7,1605.5,6.22839]
[1744521746851,0.7877,1605.7,1605.5,12.45682]
[1744521748550,0.7877,1605.7,1605.5,6.22839]
[1744521749251,0.7877,1605.7,1605.6,6.2282]
[1744521749452,0.8149,1605.8,1605.6,6.2282]
[1744521750156,0.8149,1605.8,1605.7,6.22781]
[1744521750325,5.2e-06,1605.9,1605.8,6.22742]
[1744521750731,5.2e-06,1605.9,1605.8,10.02412]
[1744521754651,5.2e-06,1605.9,1605.8,10.48376306]
[1744521756069,0.12591505,1605.9,1605.8,10.48376306]
[1744521756264,5.2e-06,1605.9,1605.8,12.76191985]
[1744521756467,0.12591505,1605.9,1605.8,12.76191985]
[1744521756634,5.2e-06,1605.9,1605.8,12.76191985]
[1744521756830,0.12591505,1605.9,1605.8,12.76191985]
[1744521757053,5.2e-06,1605.9,1605.8,11.96521985]
[1744521757257,0.12591505,1605.9,1605.8,11.50557679]
[1744521757460,5.2e-06,1605.9,1605.8,11.50557679]
[1744521757656,0.12591505,1605.9,1605.8,11.50557679]
[1744521757859,5.2e-06,1605.9,1605.8,11.50557679]
[1744521758064,0.12591505,1605.9,1605.8,11.50557679]
[1744521758246,5.2e-06,1605.9,1605.8,11.50557679]
[1744521758447,0.12591505,1605.9,1605.8,11.50557679]
[1744521758643,5.2e-06,1605.9,1605.8,11.50557679]
[1744521758848,0.12591505,1605.9,1605.8,9.22742]
[1744521769290,0.12591505,1605.9,1605.8,11.44418309]
[1744521769464,5.2e-06,1605.9,1605.8,12.27998309]
[1744521773973,5.2e-06,1605.9,1605.8,18.89997789]
[1744521774199,0.02,1606.4,1605.8,18.89997789]
[1744521774200,0.02,1606.4,1606.3,7.00168]
[1744521774497,0.02,1606.4,1606.3,18.28843789]
[1744521774697,0.16302352,1606.4,1606.3,18.28843789]
[1744521774895,0.02,1606.4,1606.3,18.28843789]
[1744521775194,0.02,1606.4,1606.3,15.2954748]
[1744521775373,0.16302352,1606.4,1606.3,18.14079228]
[1744521775988,0.16302352,1606.4,1606.3,18.61810828]
[1744521777967,0.16302352,1606.4,1606.3,20.83487137]
[1744521780176,0.16302352,1606.4,1606.3,18.61810828]
[1744521780507,0.99372352,1606.4,1606.3,18.14079228]
[1744521780674,0.99372352,1606.4,1606.1,6.22625]
[1744521780874,0.99372352,1606.4,1606.2,6.22586]
[1744521780875,1.0294794,1606.4,1606.2,6.22586]
[1744521781230,0.14697225,1606.3,1606.2,6.22586]
[1744521781443,0.97767225,1606.3,1606.2,6.22586]
[1744521781645,0.8307,1606.3,1606.2,6.22586]
[1744521781844,0.97767225,1606.3,1606.1,6.22625]
[1744521782219,0.97767225,1606.3,1606.1,12.4523]
[1744521782849,0.97767225,1606.3,1606.1,6.22605]
[1744521783003,1.69995848,1606.3,1606.1,12.45209]
[1744521783202,1.69995848,1606.3,1606.1,6.22604]
[1744521783203,0.97767225,1606.3,1606.1,6.22604]
[1744521783545,0.97767225,1606.3,1606.2,6.22587]
[1744521783751,0.97767225,1606.3,1606.1,6.22604]
[1744521784904,0.14697225,1606.3,1606.2,6.22587]
[1744521789033,0.7767,1606.2,1606.1,6.22604]
[1744521789404,0.7767,1606.3,1606.2,6.22587]
[1744521789608,0.02,1606.4,1606.3,6.22548]
[1744521790321,0.02,1606.4,1606.3,7.470615]
[1744521790822,0.02,1606.4,1606.3,10.470615]
[1744521791353,0.02,1606.4,1606.3,11.257915]
[1744521791560,0.02,1606.4,1606.3,13.47467809]
[1744521791726,0.02,1606.4,1606.3,19.54467289]
[1744521796818,0.7775,1606.9,1606.8,6.22354]
[1744521797017,19.36483,1607.3,1606.8,6.22354]
[1744521797250,1.936483,1607.2,1606.9,6.22311]
[1744521797421,2.28261471,1607.2,1606.9,12.44622]
[1744521797627,0.7555,1607.1,1607.0,6.22277]
[1744521798252,0.7555,1607.1,1606.8,6.22352]
[1744521798552,0.7555,1606.9,1606.7,6.22379]
[1744521798729,0.7555,1606.9,1606.7,6.22374]
[1744521798926,0.7555,1606.9,1606.8,6.22354]
[1744521799636,0.7555,1607.2,1606.9,6.22282]
[1744521799834,1.453216,1607.2,1606.9,12.44578]
[1744521800149,1.453216,1607.2,1606.9,6.22282]
[1744521800331,0.7555,1607.1,1606.8,6.2235]
[1744521800535,0.7555,1607.1,1606.8,12.44684]
[1744521800725,0.7555,1607.1,1606.9,6.22315]
[1744521801056,0.17735092,1607.0,1606.9,6.22315]
[1744521801840,0.7555,1606.9,1606.8,6.22334]
[1744521802048,0.7555,1606.9,1606.7,6.22388]
[1744521802227,0.93214467,1606.9,1606.7,6.22388]
[1744521803554,0.93214467,1606.9,1606.7,12.44776]
[1744521803756,0.93214467,1606.9,1606.8,6.22354]
[1744521804861,0.93214467,1606.9,1606.7,6.22388]
[1744521805827,0.93214467,1606.9,1606.8,6.22354]
[1744521806250,0.93214467,1606.9,1606.7,6.22378]
[1744521806640,0.93214467,1606.9,1606.7,12.4475]
[1744521807157,0.93214467,1606.9,1606.5,4.28230148]
[1744521807158,0.7931,1606.8,1606.5,9.22469]
[1744521807357,0.7931,1606.8,1606.5,9.22452]
[1744521807862,0.1752319,1606.7,1606.5,15.44904]
[1744521808565,0.1752319,1606.7,1606.5,9.22452]
[1744521808566,0.7931,1606.6,1606.5,9.22452]
[1744521808723,0.7931,1606.6,1606.3,6.22538]
[1744521808923,7.19197539,1606.6,1606.3,6.22538]
[1744521809130,7.91117293,1606.6,1606.3,6.22538]
[1744521809552,0.7931,1606.5,1606.1,6.22621]
[1744521809866,0.7931,1606.1,1605.7,6.0699948]
[1744521810064,0.7931,1605.8,1605.5,6.22854]
[1744521810358,0.7931,1605.8,1605.5,6.851324]
[1744521810564,0.7931,1605.8,1605.6,6.22819]
[1744521810948,0.7931,1605.8,1605.7,6.22781]
[1744521811151,0.7931,1605.8,1605.5,6.22857]
[1744521811348,0.79,1605.7,1605.3,6.22929]
[1744521811553,0.79,1605.7,1605.4,3.0]
[1744521811929,7.01795,1605.7,1605.4,3.0]
[1744521812761,0.79,1605.7,1605.4,9.22893]
[1744521812962,0.79,1605.7,1605.5,6.22839]
[1744521813553,0.79,1605.7,1605.0,7.95118904]
[1744521813871,0.8241,1605.2,1605.0,7.95118904]
[1744521814168,0.8241,1605.2,1604.9,6.23088]
[1744521814863,0.8241,1605.0,1604.7,6.23147]
[1744521815073,0.8241,1605.0,1604.8,3.0]
[1744521816045,0.8241,1605.0,1604.8,6.23111]
[1744521816237,0.8241,1605.0,1604.9,6.23091]
[1744521816439,0.8241,1605.0,1604.8,6.23111]
[1744521817169,0.8241,1605.0,1604.8,6.23105]
[1744521818073,0.8241,1605.0,1604.8,12.46212]
[1744521818273,0.8241,1605.0,1604.8,14.008332]
[1744521818471,0.8241,1605.0,1604.8,6.23105]
[1744521818643,7.05477,1605.0,1604.6,6.23172]
[1744521819169,0.8122,1604.8,1604.6,3.0]
[1744521819473,7.04213,1605.2,1604.9,6.23089]
[1744521819638,8.72641076,1605.2,1604.8,6.2313]
[1744521819839,14.95641076,1605.2,1604.8,6.2313]
[1744521820663,8.72641076,1605.2,1604.8,6.2313]
[1744521822974,2.49648076,1605.2,1604.8,6.2311]
[1744521823179,0.8122,1605.2,1604.9,6.23078]
[1744521827783,7.04195,1605.2,1604.9,6.23078]
[1744521828782,0.8122,1605.2,1604.9,6.23078]
[1744521829682,0.8122,1605.2,1604.9,12.46149]
[1744521829991,0.8122,1605.2,1604.8,6.23126]
[1744521830182,1.58572,1605.2,1604.8,6.23126]
[1744521830395,7.81569,1605.2,1604.8,6.23116]
[1744521830560,0.769,1605.1,1604.8,6.23116]
[1744521831758,6.99931,1605.1,1604.7,6.23162]
[1744521831982,6.99931,1605.1,1604.7,12.46313]
[1744521832250,8.39959,1605.1,1604.7,12.46313]
[1744521832986,8.39959,1605.1,1604.8,6.23127]
[1744521833190,2.16928,1605.1,1604.8,6.23114]
[1744521833392,2.16928,1605.1,1604.8,12.46227]
[1744521833692,2.16928,1605.1,1604.9,6.2309]
[1744521833902,0.769,1605.1,1604.9,12.46162]
[1744521834066,0.769,1605.1,1604.9,12.46143]
[1744521835496,0.769,1605.1,1604.9,12.46147]
[1744521835686,0.769,1605.1,1605.0,6.23052]
[1744521836791,6.98271,1605.3,1605.0,6.23052]
[1744521837292,0.7533,1605.3,1605.0,6.23052]
[1744521837664,6.98272,1605.3,1605.0,6.23052]
[1744521837862,8.30389,1605.3,1605.0,6.23052]
[1744521838059,6.22979,1605.2,1604.9,6.23086]
[1744521838465,8.30389,1605.3,1604.9,12.46163]
[1744521839597,8.30389,1605.3,1605.0,6.23048]
[1744521839598,0.34619212,1605.2,1605.0,6.23048]
[1744521840304,6.98272,1605.3,1605.0,6.23048]
[1744521841807,0.34654484,1605.2,1605.0,6.23048]
[1744521842024,0.34654484,1605.2,1605.1,6.23014]
[1744521842607,13.92718,1605.5,1605.1,12.46028]
[1744521842798,1.392718,1605.4,1605.1,6.23014]
[1744521843102,0.34676771,1605.3,1605.1,6.23014]
[1744521843498,0.34676771,1605.3,1605.0,7.04496]
[1744521843499,0.7804,1605.2,1605.0,6.23046]
[1744521843708,0.34676771,1605.1,1605.0,6.23046]
[1744521843872,0.34676771,1605.1,1604.8,6.23124]
[1744521844074,0.34676771,1605.1,1605.0,6.23052]
[1744521844279,0.34676771,1605.1,1605.0,8.44728309]
[1744521844506,0.34676771,1605.3,1605.2,6.22975]
[1744521844700,0.34676771,1605.3,1605.2,7.04425]
[1744521845499,0.7804,1605.5,1605.2,7.04425]
[1744521845789,2.104136,1605.5,1605.2,7.04425]
[1744521845987,2.104136,1605.5,1605.2,7.04406]
[1744521846786,2.104136,1605.5,1605.3,6.22924]
[1744521847727,6.22784,1605.7,1605.2,7.04406]
[1744521847728,6.99115,1605.8,1605.4,12.45794]
[1744521848024,13.21887,1605.8,1605.4,6.22882]
[1744521848314,6.99115,1605.8,1605.4,6.2288]
[1744521848517,0.7636,1605.8,1605.5,6.22833]
[1744521848937,2.777193,1605.8,1605.5,6.22833]
[1744521849528,6.99029,1606.0,1605.5,0.7629]
[1744521849727,0.7636,1606.0,1605.7,6.22762]
[1744521849930,0.7636,1606.0,1605.7,12.45521]
[1744521850604,0.7636,1606.0,1605.7,6.22759]
[1744521852105,0.7636,1606.0,1605.7,12.45527]
[1744521852860,1.46259,1606.0,1605.5,0.7629]
[1744521853059,7.02249,1605.6,1605.2,7.00599]
[1744521853210,13.25091,1605.6,1605.2,6.22969]
[1744521853411,7.02249,1605.6,1605.2,12.45929]
[1744521854943,13.25091,1605.6,1605.2,6.2296]
[1744521855426,7.02249,1605.6,1605.2,6.2296]
[1744521855841,7.02249,1605.6,1605.2,12.45916]
[1744521856040,7.02249,1605.6,1605.3,6.22926]
[1744521856240,0.7941,1605.6,1605.3,6.22926]
[1744521857848,7.0223,1605.6,1605.3,6.22926]
[1744521858348,13.25083,1605.6,1605.2,6.22956]
[1744521858744,6.22863,1605.5,1605.2,6.22956]
[1744521859316,0.7631,1605.4,1604.9,9.23083]
[1744521859517,12.4593,1605.3,1604.9,6.23083]
[1744521859717,6.99308,1605.2,1604.8,12.46233]
[1744521860040,0.7631,1605.2,1604.9,6.23075]
[1744521860350,0.7631,1605.2,1604.9,12.46147]
[1744521860551,0.7631,1605.2,1605.0,6.23051]
[1744521860720,0.7631,1605.4,1605.0,0.8135]
[1744521860922,0.7631,1605.4,1605.1,6.23014]
[1744521861216,0.7631,1605.6,1605.4,6.22878]
[1744521861422,13.14349,1605.8,1605.4,12.45756]
[1744521861623,22.071378,1605.8,1605.4,6.22878]
[1744521862051,3.955221,1605.6,1605.4,6.22878]
[1744521862422,3.955221,1605.6,1605.4,12.45754]
[1744521862822,3.955221,1605.6,1605.4,6.22876]
[1744521863022,3.955221,1605.6,1605.3,0.8135]
[1744521863228,0.7631,1605.5,1605.2,6.2296]
[1744521863555,4.718321,1605.6,1605.3,6.22911]
[1744521864119,3.955221,1605.6,1605.4,7.04231]
[1744521864458,13.21758,1605.9,1605.5,6.22841]
[1744521864623,6.22743,1605.8,1605.5,6.22841]
[1744521866059,12.45509,1605.8,1605.4,7.04231]
[1744521866373,0.7631,1605.7,1605.4,6.22881]
[1744521867152,0.7631,1605.7,1605.4,12.4576]
[1744521867456,0.8055,1605.8,1605.5,12.45696]
[1744521867632,0.8055,1605.8,1605.5,6.22845]
[1744521867819,7.03311,1605.8,1605.4,6.22893]
[1744521868036,7.03311,1605.8,1605.5,6.22858]
[1744521868220,0.8055,1605.8,1605.5,12.45685]
[1744521868955,7.03218,1606.0,1605.6,6.22815]
[1744521869255,7.03218,1606.0,1605.6,12.4563]
[1744521869418,7.03218,1606.0,1605.6,12.45617]
[1744521869623,0.8055,1606.0,1605.7,6.22775]
[1744521869956,0.8055,1606.0,1605.8,6.22741]
[1744521870144,0.8055,1606.0,1605.7,6.22775]
[1744521870343,0.8055,1606.0,1605.7,12.45535]
[1744521870535,0.8055,1606.0,1605.7,13.70094]
[1744521870723,0.8055,1606.0,1605.8,6.22725]
[1744521870924,10.863221,1606.2,1605.9,12.45367]
[1744521871136,10.863221,1606.2,1606.0,12.45292]
[1744521871137,3.955221,1606.2,1606.0,12.45292]
[1744521872084,2.21676309,1606.1,1605.5,6.0699948]
[1744521872236,2.21676309,1606.1,1605.2,6.22972]
[1744521872237,0.8106,1605.5,1605.2,6.22972]
[1744521873070,0.8106,1605.5,1605.1,6.23012]
[1744521873275,6.229,1605.4,1605.1,6.23012]
[1744521873479,6.229,1605.4,1605.1,6.853132]
[1744521875756,6.22998,1605.2,1604.8,6.23126]
[1744521876074,12.45999,1605.2,1604.8,6.23126]
[1744521877373,6.22998,1605.2,1604.8,6.23126]
[1744521877576,7.04001,1605.3,1604.9,6.23082]
[1744521877789,7.04001,1605.3,1604.9,12.46157]
[1744521877984,7.04001,1605.3,1604.9,6.23075]
[1744521878197,7.04001,1605.3,1604.9,7.476884]
[1744521878401,7.04001,1605.3,1604.9,6.23068]
[1744521879745,7.04001,1605.3,1605.0,6.23052]
[1744521880147,0.8106,1605.3,1605.1,6.22997]
[1744521881293,6.22996,1605.2,1604.8,6.23098]
[1744521881593,6.22996,1605.2,1604.8,13.085158]
[1744521882103,6.23091,1604.9,1604.5,2.21676309]
[1744521882305,6.23091,1604.9,1604.1,0.02]
[1744521882306,0.8041,1604.5,1604.1,0.02]
[1744521882509,0.8041,1604.5,1604.3,6.2331]
[1744521882674,7.03681,1604.5,1604.1,12.48779]
[1744521882956,7.0358,1604.7,1604.3,6.98946]
[1744521883156,0.8041,1604.7,1604.4,6.23266]
[1744521883354,7.03602,1604.7,1604.3,6.23296]
[1744521883569,12.46449,1604.6,1604.2,6.23357]
[1744521883976,6.23251,1604.5,1604.1,0.7765]
[1744521884176,0.8041,1604.4,1604.1,3.02]
[1744521884481,7.0371,1604.4,1604.1,0.02]
[1744521884667,7.0371,1604.4,1604.1,3.02]
[1744521884871,0.8041,1604.4,1604.1,9.25401]
[1744521885071,0.8041,1604.4,1604.2,6.23347]
[1744521886587,0.8041,1604.4,1604.1,9.25399]
[1744521887281,0.8041,1604.4,1604.1,17.036607]
[1744521887488,0.8041,1604.4,1604.1,17.036417]
[1744521888388,9.80449309,1604.2,1604.1,0.02]
[1744521888679,12.80449309,1604.2,1604.1,0.02]
[1744521890081,12.80449309,1604.2,1603.1,6.25789]
[1744521890082,0.8041,1603.5,1603.1,6.25789]
[1744521890381,0.8041,1603.5,1603.2,6.23737]
[1744521891182,7.04049,1603.5,1603.1,0.02]
[1744521891368,14.604791,1603.5,1603.1,6.25779]
[1744521891569,6.23676,1603.4,1603.1,6.25779]
[1744521891769,7.04049,1603.5,1603.1,6.25779]
[1744521892367,0.8041,1603.5,1603.1,0.02]
[1744521892657,0.8041,1603.5,1603.2,6.23733]
[1744521892870,7.04047,1603.5,1603.2,6.23733]
[1744521893257,8.368119,1603.5,1603.2,6.23733]
[1744521893480,8.368119,1603.5,1603.1,12.49559]
[1744521893954,8.368119,1603.5,1603.1,6.2577]
[1744521894785,8.368119,1603.5,1603.1,0.02]
[1744521894786,6.23698,1603.4,1603.1,0.02]
[1744521895151,0.7895,1603.0,1602.2,6.24118]
[1744521895355,0.7895,1603.0,1602.5,6.24023]
[1744521895356,13.14296,1602.9,1602.5,6.24023]
[1744521895690,6.23948,1602.7,1602.3,6.24078]
[1744521895876,6.23948,1602.7,1602.3,12.48164]
[1744521896458,6.23938,1602.8,1602.4,6.24062]
[1744521896658,0.623938,1602.7,1602.4,6.24062]
[1744521896991,6.904,1602.9,1602.7,6.23931]
[1744521897495,7.0278,1603.0,1602.7,6.23931]
[1744521897705,0.7895,1603.0,1602.7,12.4786]
[1744521897893,0.7895,1603.0,1602.8,6.23887]
[1744521898191,7.6753,1603.2,1602.8,6.23887]
[1744521898361,10.1527963,1603.2,1602.8,6.23887]
[1744521898563,10.1527963,1603.2,1602.9,6.23852]
[1744521898762,16.3903463,1603.2,1602.9,6.23852]
[1744521898972,7.6753,1603.2,1602.9,12.47705]
[1744521899300,0.7713,1603.4,1603.0,6.23811]
[1744521899606,0.7713,1603.4,1603.1,6.23787]
[1744521899788,0.7713,1603.4,1603.1,12.47556]
[1744521900097,0.7713,1603.4,1603.0,6.23829]
[1744521900396,0.7713,1603.4,1603.0,12.47638]
[1744521900397,7.00823,1603.4,1603.0,12.47638]
[1744521900693,7.00823,1603.4,1603.0,6.23809]
[1744521900694,8.332694,1603.4,1603.0,6.23809]
[1744521901804,8.332694,1603.4,1603.0,12.47616]
[1744521903006,2.095764,1603.4,1603.0,6.2383]
[1744521903309,7.6601,1603.6,1603.4,6.2367]
[1744521903610,0.7541,1603.6,1603.4,6.2367]
[1744521903784,0.7541,1603.6,1603.2,6.23738]
[1744521903785,6.23622,1603.6,1603.2,6.23738]
[1744521903984,6.23622,1603.6,1603.2,12.47477]
[1744521904184,6.23622,1603.6,1603.3,6.23711]
[1744521904483,6.2356,1603.7,1603.3,6.23711]
[1744521904683,7.558093,1603.7,1603.3,6.23711]
[1744521905172,6.23597,1603.6,1603.3,6.23711]
[1744521908113,12.47215,1603.6,1603.2,6.23738]
[1744521908410,6.23597,1603.6,1603.2,12.47471]
[1744521908778,6.23597,1603.6,1603.3,6.23703]
[1744521909108,1.322493,1603.7,1603.1,7.06277]
[1744521909415,0.7541,1603.8,1603.5,6.23615]
[1744521910311,6.23586,1603.7,1603.4,0.7885]
[1744521910473,12.47172,1603.7,1603.3,6.23693]
[1744521910680,1.3104,1603.6,1603.1,6.23756]
[1744521910874,6.23674,1603.4,1603.0,6.23828]
[1744521911097,7.484078,1603.4,1603.0,6.23828]
[1744521911312,1.247338,1603.4,1602.9,0.7669]
[1744521911482,6.99564,1603.8,1603.4,6.23651]
[1744521911692,13.23105,1603.8,1603.4,6.23651]
[1744521912200,0.7604,1603.8,1603.5,6.23603]
[1744521912401,0.7604,1603.8,1603.6,6.23596]
[1744521912907,0.7604,1603.8,1603.5,6.23603]
[1744521913215,6.99564,1603.8,1603.5,6.23603]
[1744521913413,9.009389,1603.8,1603.5,6.23603]
[1744521914524,9.009389,1603.8,1603.1,13.0815448]
[1744521914525,0.55,1603.7,1603.1,13.0815448]
[1744521914817,6.23612,1603.6,1603.2,12.47467]
[1744521917234,0.55,1603.7,1603.1,7.01187]
[1744521917436,12.47315,1603.5,1603.1,7.01187]
[1744521917593,7.3239853,1603.5,1603.1,7.01187]
[1744521917940,7.3239853,1603.5,1603.1,13.24957]
[1744521918493,7.3239853,1603.5,1603.2,6.23749]
[1744521919736,7.3239853,1603.5,1602.9,7.05124]
[1744521919737,6.23726,1603.3,1602.9,7.05124]
[1744521919933,6.860986,1603.3,1602.9,13.28976]
[1744521921140,0.623726,1603.3,1603.0,6.23809]
[1744521921562,6.861026,1603.3,1602.9,7.05137]
[1744521921974,6.861026,1603.3,1602.9,13.28989]
[1744521922271,6.861026,1603.3,1602.9,7.05122]
[1744521922568,0.6861026,1603.2,1602.9,13.28968]
[1744521923457,0.6861026,1603.2,1602.9,13.28966]
[1744521923828,0.623726,1603.3,1603.1,6.23791]
[1744521924033,0.7743,1603.4,1603.0,6.23811]
[1744521924258,7.01106,1603.4,1603.0,6.23811]
[1744521924468,13.24804,1603.4,1603.0,6.23811]
[1744521925176,7.01106,1603.4,1603.0,6.23811]
[1744521925759,0.7743,1603.4,1603.1,6.23756]
[1744521926069,1.39137,1603.4,1603.2,6.23738]
[1744521926224,0.8144,1603.6,1603.3,6.23713]
[1744521926425,0.8144,1603.6,1603.3,6.23692]
[1744521926649,0.8144,1603.6,1603.3,12.47388]
[1744521926854,0.8144,1603.6,1603.4,6.23671]
[1744521927048,9.27495032,1603.8,1603.4,6.23671]
[1744521927256,7.16312503,1603.7,1603.4,6.23671]
[1744521927456,6.23603,1603.6,1603.3,6.23692]
[1744521928161,7.16312503,1603.7,1603.3,12.47392]
[1744521928767,7.16312503,1603.7,1603.3,6.23692]
[1744521929831,9.27490032,1603.8,1603.4,6.2367]
[1744521930031,7.04959,1603.8,1603.4,12.4733]
[1744521931568,13.28504,1603.8,1603.4,6.2366]
[1744521932963,7.04959,1603.8,1603.4,6.23658]
[1744521934070,7.04959,1603.8,1603.5,6.23631]
[1744521934239,0.704959,1603.7,1603.4,6.23658]
[1744521934435,7.04959,1603.8,1603.4,12.47312]
[1744521934760,7.04959,1603.8,1603.4,6.23654]
[1744521934965,13.28501,1603.8,1603.4,6.23654]
[1744521935974,7.04959,1603.8,1603.4,6.23654]
[1744521936180,7.04959,1603.8,1603.5,6.23634]
[1744521936371,9.06833,1603.8,1603.5,6.23634]
[1744521936684,2.01874,1603.8,1603.5,0.775]
[1744521936843,7.00824,1604.1,1603.6,6.23591]
[1744521937047,7.00824,1604.1,1603.7,6.23539]
[1744521937248,3.955221,1604.2,1603.9,6.98994]
[1744521937471,5.7429701,1604.2,1603.9,6.98988]
[1744521937867,5.7429701,1604.2,1604.0,6.23424]
[1744521938769,3.955221,1604.2,1604.0,6.23424]
[1744521939083,3.955221,1604.2,1604.1,6.98932]
[1744521940760,13.25063,1604.7,1604.2,6.23325]
[1744521941161,6.23299,1604.4,1604.0,9.23424]
[1744521941676,6.23339,1604.3,1603.9,6.99009]
[1744521941860,1.410339,1604.2,1603.9,13.2247]
[1744521942051,0.787,1604.4,1604.1,6.23382]
[1744521942560,7.01989,1604.4,1604.1,6.23382]
[1744521944389,6.23337,1604.3,1603.9,6.98997]
[1744521944570,12.46699,1604.3,1603.9,6.98997]
[1744521944971,1.246699,1604.2,1603.9,6.23467]
[1744521945666,6.23337,1604.3,1603.9,12.4693]
[1744521946589,6.23337,1604.3,1603.9,6.23463]
[1744521946793,0.55,1604.1,1603.6,0.8091]
[1744521946993,6.2354,1603.8,1603.4,7.04564]
[1744521947163,7.67647,1603.7,1603.3,12.47426]
[1744521947362,7.05293,1603.7,1603.3,12.47426]
[1744521947592,7.05293,1603.7,1603.4,6.23671]
[1744521947793,7.05293,1603.7,1603.3,12.47405]
[1744521948059,0.8172,1604.0,1603.7,6.23543]
[1744521949498,6.23415,1604.1,1603.7,6.23543]
[1744521949697,6.23415,1604.1,1603.7,6.858973]
[1744521950268,12.4684,1604.1,1603.7,6.858973]
[1744521950476,12.4684,1604.1,1603.7,6.23543]
[1744521950988,6.23415,1604.1,1603.7,6.23542]
[1744521951898,6.23415,1604.1,1603.8,6.23513]
[1744521953800,6.23415,1604.1,1603.7,6.23542]
[1744521954029,6.23415,1604.1,1603.7,6.23537]
[1744521954730,6.23415,1604.1,1603.8,6.23512]
[1744521956724,8.252148,1604.1,1603.8,6.23512]
[1744521957018,6.895,1604.4,1604.0,6.2341]
[1744521957217,7.05688,1604.5,1604.1,7.02975]
[1744521957218,7.05657,1604.5,1604.1,7.02975]
[1744521957377,6.23327,1604.3,1604.0,6.23427]
[1744521957706,12.46621,1604.4,1604.0,6.23427]
[1744521957911,1.246621,1604.3,1604.0,6.23427]
[1744521959815,6.233,1604.4,1604.0,6.23427]
[1744521960014,6.233,1604.4,1604.0,6.2342]
[1744521960183,6.233,1604.4,1604.1,6.23392]
[1744521960583,0.8241,1604.5,1604.2,6.2335]
[1744521960795,0.8241,1604.5,1604.2,7.0293]
[1744521961320,13.28773,1604.7,1604.3,6.2331]
[1744521962189,7.0558,1604.7,1604.4,6.23282]
[1744521962992,0.8241,1604.7,1604.4,12.46548]
[1744521963192,13.12634,1604.8,1604.4,12.46548]
[1744521963389,6.895,1604.8,1604.2,0.7958]
[1744521963594,6.895,1604.8,1604.6,6.23204]
[1744521964096,6.895,1604.8,1604.7,6.23169]
[1744521964302,17.894491,1605.1,1604.7,12.46319]
[1744521964490,18.9945071,1605.1,1604.7,12.46319]
[1744521964692,12.7642371,1605.1,1604.8,13.21466]
[1744521964989,11.9492371,1605.1,1604.9,6.23084]
[1744521965191,3.955221,1605.1,1604.9,6.23084]
[1744521965620,3.955221,1605.1,1604.9,12.46153]
[1744521965827,3.955221,1605.1,1605.0,6.23052]
[1744521966027,3.955221,1605.1,1605.0,6.98282]
[1744521967004,13.14298,1605.4,1605.1,6.23011]
[1744521967203,15.5571651,1605.4,1605.1,6.23011]
[1744521967833,9.3281851,1605.4,1605.1,6.22999]
[1744521968045,9.3281851,1605.4,1605.1,12.45989]
[1744521968404,9.3281851,1605.4,1605.1,6.2299]
[1744521968733,6.914,1605.4,1605.1,6.2299]
[1744521968950,0.02,1605.4,1605.3,7.05626]
[1744521970057,0.02,1605.4,1605.3,10.05626]
[1744521971329,10.959631,1606.2,1605.8,7.05402]
[1744521971552,17.185761,1606.2,1605.8,7.05402]
[1744521971746,6.22687,1606.0,1605.6,10.05496]
[1744521971905,0.7785,1605.9,1605.5,6.22853]
[1744521972105,0.7785,1605.9,1605.6,6.22818]
[1744521972951,0.7785,1605.9,1605.6,6.22799]
[1744521973240,6.22786,1605.7,1605.4,6.22881]
[1744521973407,6.22786,1605.7,1605.3,6.99556]
[1744521973826,6.22786,1605.7,1605.3,9.61407648]
[1744521974430,6.22786,1605.7,1605.3,15.84328648]
[1744521974824,6.22786,1605.7,1605.3,6.95535]
[1744521975030,6.22786,1605.7,1605.4,6.22897]
[1744521976837,6.22786,1605.7,1605.3,13.18453]
[1744521977028,6.99191,1605.6,1605.2,19.1916948]
[1744521977227,0.699191,1605.5,1605.2,19.1916948]
[1744521977420,6.22863,1605.5,1605.2,6.2297]
[1744521977621,6.99191,1605.6,1605.2,6.2297]
[1744521977923,12.45514,1605.8,1605.4,6.2289]
[1744521978132,13.21864,1605.8,1605.4,6.2289]
[1744521978637,6.99095,1605.8,1605.4,6.22884]
[1744521978843,8.312749,1605.8,1605.5,6.22852]
[1744521979443,1.321799,1605.8,1605.6,6.22815]
[1744521980844,13.11669,1606.0,1605.6,6.22815]
[1744521981044,6.98996,1606.1,1605.7,6.22781]
[1744521981342,6.98996,1606.1,1605.7,7.03811]
[1744521981644,6.98996,1606.1,1605.8,6.22738]
[1744521983265,6.22685,1606.0,1605.7,0.8103]
[1744521983449,0.622685,1605.9,1605.7,6.22781]
[1744521983648,0.622685,1605.9,1605.6,6.22807]
[1744521983815,6.98981,1606.1,1605.7,6.22765]
[1744521984015,6.98981,1606.1,1605.7,12.45525]
[1744521984760,13.21628,1606.1,1605.7,6.2276]
[1744521985058,6.98981,1606.1,1605.7,12.45521]
[1744521986245,13.2163,1606.1,1605.7,6.2276]
[1744521986550,1.32163,1606.0,1605.7,6.2276]
[1744521986870,1.32163,1606.0,1605.7,12.45524]
[1744521987031,6.98981,1606.1,1605.7,12.45524]
[1744521987522,13.2163,1606.1,1605.7,6.2276]
[1744521988057,6.98981,1606.1,1605.7,12.45522]
[1744521989862,12.45206,1606.2,1605.8,7.0022]
[1744521990449,6.24515,1606.4,1605.8,0.775]